bitfinex-derivatives/quotes_SOLF0:USTF0_20250712
["timestamp","ask_amount","ask_price","bid_price","bid_amount"]
[1752341840230,3.39,159.87,159.86,9.8632]
[1752341840828,542.28383713,159.9,159.88,6.2525]
[1752341841027,542.28383713,159.9,159.87,3.61]
[1752341841624,3.39,159.89,159.88,3.61]
[1752341842228,5.35383713,159.89,159.83,1.96383713]
[1752341842430,1.96383713,159.87,159.84,3.61]
[1752341842725,3.39,159.86,159.84,9.8637]
[1752341842927,3.39,159.86,159.85,3.61]
[1752341844727,3.39,159.86,159.85,9.8637]
[1752341845231,3.39,159.86,159.85,3.61]
[1752341846830,3.39,159.86,159.85,9.8636]
[1752341847230,180.64,159.89,159.85,9.8636]
[1752341847427,3.39,159.88,159.85,6.2536]
[1752341847632,3.39,159.88,159.86,3.61]
[1752341849235,3.39,159.88,159.85,3.61]
[1752341849427,3.39,159.88,159.84,9.8639]
[1752341849628,3.39,159.88,159.85,3.61]
[1752341850330,3.39,159.88,159.84,3.61]
[1752341850831,3.39,159.88,159.84,9.864]
[1752341851026,3.39,159.88,159.83,3.61]
[1752341851226,3.39,159.88,159.81,3.61]
[1752341851630,3.39,159.88,159.8,3.61]
[1752341853139,3.39,159.82,159.8,3.61]
[1752341853533,3.39,159.82,159.81,3.61]
[1752341857139,9.8248,159.82,159.79,6.2558]
[1752341857340,3.57,159.81,159.8,3.51]
[1752341858038,3.57,159.82,159.8,3.51]
[1752341858528,3.57,159.82,159.81,3.51]
[1752341859640,3.57,159.81,159.8,3.51]
[1752341860439,3.57,159.81,159.8,6.2556]
[1752341860639,3.57,159.81,159.8,9.7656]
[1752341861638,6.2547,159.83,159.8,6.2556]
[1752341861844,3.57,159.82,159.81,3.51]
[1752341865640,3.57,159.82,159.8,3.51]
[1752341865641,3.57,159.81,159.8,3.51]
[1752341866441,3.57,159.81,159.79,14.96840939]
[1752341866740,3.57,159.81,159.79,9.7658]
[1752341867242,3.57,159.8,159.79,3.51]
[1752341868144,3.57,159.8,159.79,9.766]
[1752341868443,3.57,159.81,159.79,3.51]
[1752341868742,9.8246,159.83,159.81,3.51]
[1752341868941,3.57,159.82,159.81,3.51]
[1752341870237,3.57,159.82,159.81,9.7651]
[1752341871840,3.57,159.88,159.83,6.2544]
[1752341872142,3.57,159.88,159.84,3.51]
[1752341872646,3.57,159.88,159.86,3.51]
[1752341874943,3.57,159.88,159.84,6.2538]
[1752341875145,3.57,159.88,159.85,3.51]
[1752341876543,3.57,159.88,159.86,3.51]
[1752341877242,3.57,159.88,159.86,9.7632]
[1752341877444,3.57,159.88,159.87,3.51]
[1752341879043,3.57,159.88,159.87,9.7629]
[1752341881647,184.21,159.89,159.87,6.2529]
[1752341881848,184.21,159.89,159.88,3.51]
[1752341882344,3.57,159.89,159.88,3.51]
[1752341882747,3.57,159.9,159.89,3.51]
[1752341882947,3.57,159.91,159.89,3.51]
[1752341883446,3.57,159.91,159.9,9.7615]
[1752341886559,3.57,159.91,159.9,3.51]
[1752341888554,3.57,159.91,159.9,9.7617]
[1752341888755,3.5,159.92,159.91,3.37]
[1752341889255,180.56,159.93,159.91,9.621]
[1752341889457,184.06,159.93,159.91,6.251]
[1752341889647,184.06,159.93,159.92,3.37]
[1752341889850,3.5,159.93,159.92,3.37]
[1752341894454,181.60840133,159.96,159.92,3.37]
[1752341894653,3.5,159.95,159.93,3.37]
[1752341894959,3.5,159.94,159.93,9.6203]
[1752341895354,3.5,159.94,159.93,3.37]
[1752341897959,3.5,159.95,159.93,9.6205]
[1752341898166,3.5,159.95,159.94,3.37]
[1752341898459,184.02,159.96,159.94,9.6201]
[1752341898651,184.02,159.96,159.95,3.37]
[1752341899155,3.5,159.96,159.95,3.37]
[1752341900160,3.5,159.96,159.95,9.73226521]
[1752341901557,3.5,159.99,159.96,3.37]
[1752341901758,3.5,159.99,159.97,6.36226521]
[1752341901954,3.5,159.99,159.98,6.36226521]
[1752341902163,3.5,159.99,159.98,6.35937762]
[1752341907568,3.5,159.99,159.98,9.72937762]
[1752341908565,1.08814609,160.0,159.98,9.72937762]
[1752341908765,184.98814609,160.0,159.99,9.72937762]
[1752341911570,3.5,160.0,159.99,9.72937762]
[1752341919073,3.5,160.0,159.99,9.73890094]
[1752341919471,3.5,160.0,159.99,3.37]
[1752341919770,3.5,160.0,159.99,9.73996608]
[1752341919971,3.5,160.0,159.99,6.36996608]
[1752341922779,3.5,160.0,159.92,11.41043268]
[1752341923069,3.5,159.98,159.94,3.5]
[1752341923265,3.5,159.96,159.93,3.5]
[1752341923471,180.32,159.95,159.93,3.5]
[1752341923665,3.5,159.94,159.93,3.5]
[1752341926079,180.32,159.95,159.93,3.5]
[1752341926469,3.5,159.95,159.93,3.5]
[1752341927072,1.08797599,160.01,159.93,9.7504]
[1752341927274,3.5,159.96,159.94,3.5]
[1752341927674,180.32,159.97,159.94,6.2501]
[1752341927874,3.5,159.96,159.95,3.5]
[1752341934680,3.5,160.0,159.95,3.5]
[1752341934878,3.5,159.99,159.95,3.5]
[1752341935581,3.5,159.99,159.96,3.5]
[1752341936181,3.5,159.99,159.96,9.7491]
[1752341936380,3.5,159.99,159.98,3.5]
[1752341942684,1.08797599,160.03,159.98,3.5]
[1752341942886,3.5,160.02,160.0,3.5]
[1752341943078,3.5,160.02,160.01,3.5]
[1752341943481,181.38770394,160.07,160.01,10.00789378]
[1752341943680,3.5,160.06,160.02,6.50789378]
[1752341943885,3.5,160.06,160.03,16.49227543]
[1752341944087,3.5,160.06,160.04,12.99227543]
[1752341944385,3.5,160.06,160.05,12.99227543]
[1752341948989,3.5,160.06,160.05,6.50789378]
[1752341949186,1.08770394,160.07,160.05,16.52240708]
[1752341949393,1.08770394,160.07,159.94,22.93789293]
[1752341949394,3.51,160.07,160.06,16.52240708]
[1752341951292,3.51,160.09,160.07,3.41]
[1752341951490,3.51,160.09,160.08,16.52240708]
[1752341951891,3.51,160.09,160.08,16.50510366]
[1752341953695,180.24,160.11,160.08,16.50510366]
[1752341953895,3.51,160.09,160.08,3.41]
[1752341954092,3.51,160.09,160.08,16.50752041]
[1752341954590,3.51,160.09,160.08,16.50424956]
[1752341957702,3.51,160.09,160.08,13.09424956]
[1752341958401,3.51,160.09,160.08,16.50424956]
[1752341961006,3.51,160.09,160.08,6.57558439]
[1752341961795,3.51,160.09,160.04,3.41]
[1752341962899,3.51,160.09,160.05,3.41]
[1752341964610,3.51,160.09,160.04,3.41]
[1752341965408,3.51,160.09,160.05,3.41]
[1752341967710,3.51,160.09,160.05,9.6558]
[1752341967906,3.51,160.09,159.99,5.18766236]
[1752341968103,3.51,160.09,160.0,3.41]
[1752341968307,3.51,160.09,160.05,6.2455]
[1752341968502,3.51,160.09,160.06,3.41]
[1752341970204,3.51,160.09,160.06,6.2454]
[1752341970512,3.51,160.09,160.07,3.41]
[1752341970816,3.51,160.09,160.08,6.47592769]
[1752341973105,3.51,160.09,160.05,3.41]
[1752341973809,3.51,160.09,160.06,6.41629882]
[1752341974005,3.51,160.09,160.07,6.41629882]
[1752341974204,3.51,160.09,160.08,6.41629882]
[1752341974911,3.51,160.09,160.05,3.41]
[1752341975108,3.51,160.09,160.06,6.41655515]
[1752341975304,3.51,160.09,160.07,6.41655515]
[1752341975514,3.51,160.09,160.08,6.41655515]
[1752341983022,183.82,160.11,160.09,3.39]
[1752341983216,183.82,160.11,160.1,6.41655515]
[1752341983418,183.82,160.11,160.1,9.80655515]
[1752341983723,3.64,160.13,160.11,3.39]
[1752341983923,3.64,160.15,160.12,9.80655515]
[1752341984118,3.64,160.15,160.13,6.41655515]
[1752341984321,3.64,160.15,160.14,6.41655515]
[1752341985027,3.64,160.15,160.14,12.84324692]
[1752341985722,3.64,160.15,160.14,16.23324692]
[1752341986421,3.64,160.15,160.14,12.84324692]
[1752341988523,3.64,160.15,160.14,16.23324692]
[1752341989117,332.57019795,160.18,160.14,16.23324692]
[1752341989118,3.64,160.17,160.15,3.39]
[1752341989313,3.64,160.17,160.16,12.84324692]
[1752341993429,3.64,160.17,160.16,16.23324692]
[1752341994724,1.08692257,160.18,160.17,6.2412]
[1752341994925,3.64,160.2,160.17,16.23324692]
[1752341995133,3.64,160.2,160.18,12.84324692]
[1752341995332,3.64,160.2,160.19,16.23324692]
[1752341996029,3.64,160.2,160.19,12.84324692]
[1752341997133,3.64,160.2,160.19,16.23324692]
[1752341999336,3.64,160.2,160.19,16.21920541]
[1752342001239,3.64,160.2,160.19,16.1938266]
[1752342002537,3.64,160.2,160.19,12.8038266]
[1752342003240,3.64,160.2,160.14,3.39]
[1752342006646,3.64,160.2,160.13,3.41]
[1752342009547,3.64,160.2,160.1,3.41]
[1752342010248,6.89298194,160.21,160.16,6.2413]
[1752342010547,3.59,160.19,160.17,3.41]
[1752342010748,6.89298194,160.21,160.18,3.41]
[1752342011150,10.48298194,160.21,160.18,3.41]
[1752342011448,10.48298194,160.21,160.19,3.41]
[1752342011649,6.89298194,160.21,160.19,3.41]
[1752342011846,6.89298194,160.21,160.2,3.41]
[1752342012348,3.59,160.26,160.2,3.41]
[1752342013040,3.59,160.26,160.21,6.2394]
[1752342013344,3.59,160.26,160.23,0.89]
[1752342013753,3.59,160.25,160.15,5.18766236]
[1752342014047,3.59,160.25,160.17,0.89]
[1752342014841,3.59,160.28,160.18,0.89]
[1752342015249,3.59,160.28,160.22,0.89]
[1752342015755,3.59,160.37,160.17,0.89]
[1752342016052,3.59,160.35,160.18,0.89]
[1752342016254,3.59,160.32,160.24,6.2383]
[1752342016442,3.59,160.32,160.18,0.89]
[1752342017459,3.59,160.32,160.23,6.2386]
[1752342017753,3.59,160.32,160.23,7.1286]
[1752342018052,3.59,160.32,160.2,0.89]
[1752342018849,3.59,160.3,160.2,0.89]
[1752342019949,3.59,160.3,160.24,7.1282]
[1752342020357,3.59,160.3,160.24,0.89]
[1752342020650,3.59,160.3,160.25,6.2378]
[1752342020858,3.59,160.3,160.26,0.89]
[1752342021853,3.59,160.3,160.26,7.1276]
[1752342022254,3.59,160.3,160.26,0.89]
[1752342023154,3.59,160.3,160.26,7.1273]
[1752342023759,3.59,160.3,160.25,6.2379]
[1752342023957,3.59,160.3,160.25,7.1279]
[1752342024151,3.59,160.3,160.18,5.1224579]
[1752342024357,3.59,160.3,160.2,0.89]
[1752342024561,3.59,160.3,160.21,4.59064181]
[1752342024856,3.59,160.3,160.19,5.1224579]
[1752342024857,3.59,160.3,160.23,0.89]
[1752342025560,3.59,160.3,160.25,7.1278]
[1752342025756,3.59,160.3,160.25,0.89]
[1752342026152,3.59,160.3,160.25,7.128]
[1752342027162,3.59,160.3,160.26,6.2377]
[1752342027458,3.59,160.32,160.27,0.89]
[1752342027662,3.59,160.32,160.21,0.89]
[1752342027865,3.59,160.32,160.22,4.59213388]
[1752342028058,3.59,160.32,160.24,0.89]
[1752342028253,3.59,160.32,160.25,4.59213388]
[1752342028453,3.59,160.32,160.26,0.89]
[1752342028663,3.59,160.32,160.27,7.127]
[1752342029668,3.59,160.32,160.27,0.89]
[1752342031861,3.59,160.32,160.26,0.89]
[1752342032061,3.59,160.32,160.25,7.1279]
[1752342033166,3.59,160.32,160.21,0.89]
[1752342033366,3.59,160.32,160.23,0.89]
[1752342033566,3.59,160.32,160.24,4.59190383]
[1752342033765,3.59,160.32,160.2,6.0124579]
[1752342033970,3.59,160.32,160.21,4.59278019]
[1752342034160,3.59,160.32,160.22,4.59278019]
[1752342034360,3.59,160.32,160.2,7.13]
[1752342034361,3.59,160.32,160.23,4.59278019]
[1752342034562,3.59,160.32,160.2,0.89]
[1752342034759,3.59,160.32,160.21,4.59361754]
[1752342034962,3.59,160.32,160.22,5.48361754]
[1752342035168,3.59,160.32,160.23,4.59361754]
[1752342035366,3.59,160.32,160.22,0.89]
[1752342035668,3.59,160.32,160.23,4.59427547]
[1752342035868,3.59,160.32,160.22,0.89]
[1752342036068,3.59,160.32,160.23,4.59434519]
[1752342036369,3.59,160.32,160.22,0.89]
[1752342036569,3.59,160.32,160.23,5.49456122]
[1752342036768,3.59,160.32,160.23,0.9]
[1752342037671,3.58,160.34,160.25,0.9]
[1752342038161,3.58,160.34,160.3,6.236]
[1752342038357,3.58,160.34,160.3,7.136]
[1752342038870,3.58,160.34,160.28,7.1365]
[1752342039265,3.58,160.34,160.29,0.9]
[1752342040864,3.58,160.34,160.21,0.9]
[1752342041071,3.58,160.34,160.23,0.9]
[1752342041264,3.58,160.34,160.25,0.9]
[1752342041860,3.58,160.34,160.27,6.237]
[1752342042063,3.58,160.34,160.28,5.49455184]
[1752342042370,3.58,160.34,160.28,0.9]
[1752342042571,180.88,160.4,160.29,4.59352489]
[1752342042572,3.58,160.33,160.29,4.59352489]
[1752342042864,3.58,160.33,160.31,0.9]
[1752342043164,3.58,160.32,160.31,0.9]
[1752342043761,3.58,160.32,160.29,7.1362]
[1752342043967,3.58,160.31,160.29,7.1362]
[1752342044163,180.88,160.4,160.29,7.1362]
[1752342044164,180.88,160.4,160.3,0.9]
[1752342044465,3.58,160.39,160.28,7.1367]
[1752342044673,3.58,160.39,160.28,0.9]
[1752342044863,1.08617622,160.37,160.28,0.9]
[1752342045067,3.58,160.36,160.28,0.9]
[1752342045463,3.58,160.36,160.28,7.1368]
[1752342047475,3.58,160.36,160.29,6.2365]
[1752342049075,3.58,160.36,160.29,7.1365]
[1752342050272,3.58,160.36,160.29,0.9]
[1752342051176,3.58,160.36,160.28,0.9]
[1752342051774,3.58,160.36,160.28,7.1369]
[1752342052178,3.05115946,160.32,160.28,7.1369]
[1752342052377,3.58,160.31,160.28,7.1369]
[1752342052677,3.58,160.31,160.28,0.9]
[1752342053376,3.58,160.31,160.28,7.1368]
[1752342053768,3.58,160.31,160.28,0.9]
[1752342053975,3.58,160.29,160.25,0.9]
[1752342054380,3.58,160.29,160.26,6.2374]
[1752342054581,3.58,160.29,160.27,0.9]
[1752342054982,3.58,160.29,160.25,7.1379]
[1752342056983,3.05115946,160.28,160.25,0.9]
[1752342057278,3.58,160.26,160.25,0.9]
[1752342057780,3.58,160.26,160.25,7.138]
[1752342060278,3.05372724,160.26,160.22,5.1224579]
[1752342060582,3.58,160.25,160.22,0.9]
[1752342060778,3.58,160.25,160.22,7.1389]
[1752342061081,3.58,160.25,160.22,0.9]
[1752342061283,3.58,160.25,160.2,5.1224579]
[1752342061284,3.58,160.24,160.23,7.1386]
[1752342062787,3.58,160.31,160.23,0.9]
[1752342062985,3.58,160.27,160.23,0.9]
[1752342063182,3.58,160.27,160.21,5.1224579]
[1752342063377,3.58,160.27,160.23,7.1385]
[1752342063581,3.58,160.27,160.23,6.2385]
[1752342063781,3.05372724,160.26,160.23,6.2385]
[1752342064078,3.58,160.25,160.22,7.1391]
[1752342064275,3.58,160.23,160.22,6.2391]
[1752342066982,3.58,160.23,160.22,7.1291]
[1752342074691,3.05372724,160.26,160.24,6.2384]
[1752342074891,3.59,160.25,160.24,7.1284]
[1752342075092,3.59,160.25,160.24,6.2384]
[1752342076988,180.46,160.32,160.27,6.2372]
[1752342077191,3.05372724,160.29,160.22,5.14678105]
[1752342077396,180.46,160.32,160.22,0.89]
[1752342077397,3.05372724,160.27,160.22,0.89]
[1752342077593,3.59,160.26,160.25,6.2378]
[1752342082500,3.59,160.26,160.24,6.2382]
[1752342082899,3.59,160.26,160.23,0.89]
[1752342083101,3.59,160.26,160.24,6.2384]
[1752342085204,3.59,160.26,160.25,6.238]
[1752342085503,3.59,160.26,160.23,0.89]
[1752342085698,6.64372724,160.26,160.22,6.2389]
[1752342085897,3.59,160.25,160.22,6.2389]
[1752342086497,3.59,160.25,160.23,6.2388]
[1752342086704,3.05372724,160.26,160.2,5.14404623]
[1752342086898,3.59,160.24,160.23,6.2385]
[1752342087099,3.59,160.24,160.23,7.1285]
[1752342087703,3.59,160.24,160.23,6.2385]
[1752342087901,3.59,160.24,160.22,6.239]
[1752342088902,6.64372724,160.24,160.21,6.2395]
[1752342089104,3.59,160.23,160.21,6.2395]
[1752342090200,3.59,160.23,160.22,6.2392]
[1752342090400,3.59,160.23,160.2,0.89]
[1752342090903,3.59,160.23,160.21,6.2393]
[1752342091102,3.59,160.23,160.2,0.89]
[1752342091302,3.59,160.23,160.21,6.2396]
[1752342092006,3.59,160.23,160.22,6.2392]
[1752342092807,3.59,160.23,160.22,7.1292]
[1752342093398,538.98,160.33,160.22,7.1292]
[1752342093399,538.98,160.33,160.22,0.89]
[1752342093606,3.59,160.28,160.23,0.89]
[1752342094207,3.59,160.27,160.26,0.89]
[1752342095203,3.59,160.27,160.26,7.1277]
[1752342097008,3.05165658,160.31,160.29,6.2362]
[1752342097214,3.58,160.3,160.29,6.2362]
[1752342098714,3.58,160.3,160.29,7.1362]
[1752342098914,3.58,160.31,160.29,0.9]
[1752342099217,3.58,160.31,160.28,5.14404623]
[1752342099414,3.58,160.3,160.29,0.9]
[1752342100211,3.58,160.3,160.29,7.1365]
[1752342100715,3.58,160.33,160.29,0.9]
[1752342101715,3.58,160.33,160.3,6.236]
[1752342102318,3.58,160.33,160.31,6.2355]
[1752342102516,3.58,160.33,160.29,0.9]
[1752342103018,3.58,160.33,160.3,0.9]
[1752342104020,3.58,160.33,160.31,6.2357]
[1752342104216,3.58,160.33,160.28,0.9]
[1752342104719,3.58,160.33,160.3,6.2359]
[1752342107721,3.58,160.33,160.31,6.2355]
[1752342107920,3.58,160.33,160.28,0.9]
[1752342109025,3.58,160.33,160.29,6.47521978]
[1752342109232,3.58,160.33,160.31,6.2356]
[1752342109430,3.58,160.33,160.32,6.47521978]
[1752342109619,3.58,160.33,160.32,12.71051978]
[1752342110730,3.58,160.33,160.32,6.47521978]
[1752342111929,3.58,160.33,160.32,12.71051978]
[1752342113526,3.58,160.33,160.32,6.47521978]
[1752342115232,3.58,160.33,160.32,12.71051978]
[1752342116832,3.58,160.33,160.32,13.61051978]
[1752342117538,3.05165658,160.41,160.33,0.9]
[1752342117737,6.62766726,160.4,160.34,7.37521978]
[1752342117939,3.58,160.39,160.35,6.47521978]
[1752342118236,3.58,160.39,160.36,6.47521978]
[1752342118430,3.58,160.39,160.37,6.47521978]
[1752342118633,3.58,160.39,160.38,6.47521978]
[1752342118938,3.58,160.39,160.33,0.9]
[1752342119435,3.58,160.39,160.34,6.2344]
[1752342119933,3.58,160.37,160.34,6.2344]
[1752342120335,3.58,160.37,160.32,0.9]
[1752342120535,3.04766726,160.36,160.3,0.9]
[1752342120736,3.58,160.35,160.3,0.9]
[1752342121235,3.58,160.35,160.31,6.2355]
[1752342121436,3.58,160.35,160.27,3.04766726]
[1752342121637,3.58,160.33,160.28,0.9]
[1752342121943,3.58,160.33,160.29,0.9]
[1752342122137,3.58,160.33,160.3,6.2359]
[1752342124634,3.58,160.33,160.31,6.2357]
[1752342125940,3.58,160.33,160.3,6.2359]
[1752342126146,3.58,160.33,160.3,7.1359]
[1752342127139,3.58,160.33,160.31,6.2357]
[1752342129942,3.61,160.32,160.25,0.9]
[1752342130241,3.61,160.29,160.25,0.9]
[1752342130633,3.61,160.29,160.26,6.2375]
[1752342130837,3.61,160.29,160.25,0.9]
[1752342131740,3.61,160.29,160.21,8.1941789]
[1752342131946,3.05013267,160.28,160.23,0.9]
[1752342132137,3.61,160.27,160.23,0.9]
[1752342132646,3.05013267,160.32,160.21,0.9]
[1752342132647,3.61,160.25,160.21,0.9]
[1752342132944,6.9595819,160.37,160.21,3.05013267]
[1752342133149,3.61,160.31,160.25,3.05013267]
[1752342133345,3.61,160.31,160.26,0.9]
[1752342133649,3.61,160.31,160.28,0.9]
[1752342134651,3.61,160.31,160.29,6.2365]
[1752342138844,3.05013267,160.33,160.29,6.2365]
[1752342139051,3.61,160.32,160.29,7.1365]
[1752342139554,3.61,160.32,160.29,6.2365]
[1752342139757,3.61,160.32,160.28,6.2367]
[1752342140258,3.61,160.32,160.29,6.2365]
[1752342141956,3.61,160.32,160.28,6.2367]
[1752342142153,3.61,160.32,160.27,0.9]
[1752342144158,3.61,160.32,160.28,0.9]
[1752342145055,3.61,160.32,160.28,3.95013267]
[1752342145354,3.61,160.32,160.29,6.2362]
[1752342145559,3.61,160.32,160.29,7.1362]
[1752342145758,3.61,160.32,160.29,6.2362]
[1752342145958,3.61,160.32,160.3,0.9]
[1752342146258,3.61,160.32,160.31,6.36471106]
[1752342147863,3.61,160.33,160.31,6.36471106]
[1752342148158,3.61,160.33,160.32,7.26471106]
[1752342148459,3.61,160.33,160.32,6.36471106]
[1752342148653,3.61,160.33,160.32,7.26471106]
[1752342148855,3.61,160.33,160.32,13.50001106]
[1752342150256,3.61,160.37,160.34,6.2345]
[1752342150560,3.05013267,160.36,160.35,6.36471106]
[1752342150754,6.66013267,160.36,160.35,6.36471106]
[1752342151652,6.66013267,160.36,160.31,6.2356]
[1752342151953,3.61,160.33,160.32,6.376619]
[1752342152153,3.61,160.33,160.3,3.56]
[1752342152352,3.61,160.33,160.31,3.56]
[1752342152763,3.61,160.33,160.31,9.7955]
[1752342153063,183.43013267,160.36,160.28,3.05013267]
[1752342153258,3.61,160.32,160.31,6.2357]
[1752342153763,3.61,160.32,160.31,9.7957]
[1752342153959,183.43013267,160.36,160.32,6.2351]
[1752342154163,3.61,160.33,160.32,9.7951]
[1752342154559,538.78,160.41,160.32,9.7951]
[1752342154763,538.78,160.41,160.35,3.56]
[1752342154764,3.61,160.37,160.35,3.56]
[1752342155064,3.61,160.36,160.33,3.56]
[1752342155761,183.43013267,160.4,160.35,3.55]
[1752342155762,3.35,160.37,160.35,3.55]
[1752342155959,3.35,160.37,160.36,3.55]
[1752342156260,3.35,160.37,160.36,9.7838]
[1752342157966,3.35,160.37,160.34,3.55]
[1752342158562,3.35,160.37,160.35,6.234]
[1752342158761,3.05013267,160.39,160.35,9.784]
[1752342158969,3.35,160.36,160.35,9.784]
[1752342160461,3.35,160.36,160.34,9.7845]
[1752342161265,3.35,160.36,160.33,6.2348]
[1752342161462,3.35,160.36,160.32,3.55]
[1752342161659,3.35,160.36,160.33,3.55]
[1752342161865,3.35,160.36,160.33,9.7847]
[1752342162557,3.35,160.36,160.34,9.7845]
[1752342162765,3.35,160.36,160.35,3.55]
[1752342163259,3.35,160.36,160.31,3.55]
[1752342163463,3.35,160.36,160.32,3.55]
[1752342164875,3.35,160.36,160.33,6.2349]
[1752342165379,3.05013267,160.36,160.3,3.55]
[1752342165569,3.35,160.35,160.3,3.55]
[1752342165769,3.35,160.35,160.29,6.60013267]
[1752342165975,3.35,160.35,160.29,3.55]
[1752342166579,3.35,160.33,160.29,9.7863]
[1752342167074,183.73,160.33,160.28,9.7868]
[1752342167274,6.40013267,160.32,160.26,3.55]
[1752342167477,3.35,160.31,160.26,3.55]
[1752342167864,3.35,160.31,160.25,3.05013267]
[1752342168073,3.35,160.31,160.26,3.55]
[1752342168872,3.35,160.31,160.28,6.2369]
[1752342169076,3.35,160.31,160.28,9.7869]
[1752342172881,3.35,160.31,160.26,3.55]
[1752342173274,3.35,160.31,160.26,6.60013267]
[1752342173472,3.35,160.31,160.27,3.55]
[1752342174570,180.36,160.34,160.26,8.19183373]
[1752342174571,180.36,160.34,160.28,3.05013267]
[1752342174772,3.35,160.32,160.3,3.55]
[1752342174973,3.35,160.32,160.31,3.55]
[1752342176280,3.35,160.32,160.3,9.786]
[1752342176668,3.35,160.32,160.3,6.236]
[1752342177775,3.35,160.32,160.3,9.786]
[1752342180679,3.35,160.32,160.31,6.2357]
[1752342183082,3.35,160.32,160.26,5.14170106]
[1752342183282,3.35,160.3,160.25,3.55]
[1752342183583,3.35,160.3,160.28,6.2367]
[1752342183783,3.35,160.3,160.29,3.55]
[1752342184179,3.35,160.3,160.29,9.7865]
[1752342184880,3.35,160.3,160.29,3.55]
[1752342185180,3.35,160.3,160.26,3.05013267]
[1752342185382,3.05013267,160.33,160.28,6.2366]
[1752342185578,3.35,160.32,160.29,3.55]
[1752342187789,3.35,160.32,160.25,3.46]
[1752342188085,3.39,160.26,160.2,5.14170106]
[1752342188388,3.39,160.24,160.21,3.46]
[1752342189288,3.39,160.24,160.19,3.46]
[1752342189987,3.39,160.24,160.2,6.2398]
[1752342190183,3.39,160.24,160.2,3.46]
[1752342190383,3.39,160.22,160.2,3.46]
[1752342190782,3.39,160.21,160.2,3.46]
[1752342190987,3.05013267,160.23,160.2,3.46]
[1752342191188,3.39,160.23,160.21,3.46]
[1752342191484,3.39,160.22,160.21,3.46]
[1752342191784,3.05013267,160.25,160.19,6.2401]
[1752342191984,3.39,160.24,160.19,6.2401]
[1752342192192,3.39,160.24,160.17,3.05013267]
[1752342192482,3.39,160.24,160.19,6.2403]
[1752342192788,3.39,160.24,160.2,3.46]
[1752342193684,3.05013267,160.23,160.2,3.46]
[1752342193889,3.39,160.22,160.2,3.46]
[1752342201292,3.39,160.22,160.21,3.46]
[1752342203996,3.39,160.23,160.22,3.46]
[1752342204292,3.39,160.23,160.13,5.14170106]